Cogmind - Beta 13 *** ADVENTURER MODE // 2024.03.14 @ 10:00:54 Player: Prophet Result: Self-destructed Performance ------------- Evolutions (2) 1000 Regions Visited (5) 1000 Robots Destroyed (34) 170 Value Destroyed (771) 771 Prototype IDs (6) 120 Alien Tech Used (0) 0 Bonus (0) 0 TOTAL SCORE: 3061 Bonus ------- None Cogmind --------- Core Integrity 428/550 Matter 270/300 Energy 38/350 System Corruption 0% Temperature Critical (622) Movement Flying (26) Location -8/Materials Parts ------- > --- POWER (2) -------- Light Ion Engine Light Ion Engine > --- PROPULSION (4) --- VTOL Module VTOL Module VTOL Module Improved VTOL Module > --- UTILITY (2) ------ Compact Battery Experimental Sensor Array > --- WEAPON (3) ------- Heavy Particle Gun EM Pulse Cannon > --- INVENTORY (5) ---- VTOL Module Improved Terrain Scan Processor Target Analyzer Armor Integrity Analyzer Datajack Peak State ------------ > --- POWER ------------ Light Ion Engine Light Ion Engine > --- PROPULSION ------- VTOL Module VTOL Module VTOL Module Improved VTOL Module > --- UTILITY ---------- Compact Battery Experimental Sensor Array > --- WEAPON ----------- Improved EM Shotgun Heavy Particle Gun EM Pulse Cannon > --- INVENTORY -------- VTOL Module Improved Terrain Scan Processor Target Analyzer Armor Integrity Analyzer Datajack [Rating: 35] Favorites ----------- Power Light Ion Engine Engine Light Ion Engine Power Core Light Nuclear Core Propulsion Improved Hover Unit Treads Light Treads Hover Unit Improved Hover Unit Flight Unit VTOL Module Utility Small Storage Unit Device Experimental Sensor Array Storage Small Storage Unit Weapon Improved EM Shotgun Energy Gun Improved EM Shotgun Energy Cannon EM Pulse Cannon Ballistic Gun Light Assault Rifle Ballistic Cannon Light Cannon Special Weapon Mining Laser Special Melee Weapon Datajack Build | -11 -10 -10 -10 -9 -8 ------- Run | Yrd Mat Min Exi Min Mat Slots Evolved 4 | . . . . . 4 Power 1 | . . . . . 1 Propulsion 2 | . . . . . 2 Utility . | . . . . . . Weapon 1 | . . . . . 1 Parts Attached 35 | 7 9 3 . 1 15 Power 7 | 1 . 1 . . 5 Engine 5 | 1 . . . . 4 Core 2 | . . 1 . . 1 Reactor . | . . . . . . Propulsion 11 | 2 4 . . . 5 Treads 2 | 2 . . . . . Leg . | . . . . . . Wheel . | . . . . . . Hover 2 | . 2 . . . . Flight 7 | . 2 . . . 5 Utility 4 | 2 . 1 . . 1 Device 2 | 1 . 1 . . . Storage 2 | 1 . . . . 1 Processor . | . . . . . . Hackware . | . . . . . . Protection . | . . . . . . Artifact . | . . . . . . Weapon 13 | 2 5 1 . 1 4 Energy Gun 5 | . 3 1 . . 1 Energy Cannon 1 | . . . . . 1 Ballistic Gun 2 | 2 . . . . . Ballistic Cannon 2 | . 2 . . . . Launcher . | . . . . . . Special Weapon 1 | . . . . 1 . Impact Weapon . | . . . . . . Slashing Weapon . | . . . . . . Piercing Weapon . | . . . . . . Special Melee Weapon 2 | . . . . . 2 Unidentified Prototypes 4 | . 1 1 . . 2 Parts Lost 2 | . . . . 1 1 Power 1 | . . . . . 1 Propulsion . | . . . . . . Utility . | . . . . . . Weapon 1 | . . . . 1 . Highest Loss Streak 1 | . . . . 1 1 To Critical Strikes . | . . . . . . Average Slot Usage (%) 95 | . 100 100 100 90 90 Engine 7 | . 14 9 . . 16 Core 7 | . . 4 14 14 . Treads 1 | . 5 . . . . Hover 22 | . 21 28 28 28 . Flight 5 | . 1 . . . 36 Device 13 | . 14 14 14 14 9 Storage 13 | . 14 14 14 14 9 Energy Gun 21 | . 22 28 28 18 9 Energy Cannon 1 | . . . . . 7 Naked Turns . | . . . . . . Heaviest Build 19 | 11 15 17 17 17 19 Greatest Support 40 | 40 40 14 14 14 17 Greatest Overweight (x) 1 | . 1 1 1 1 1 Average Overweight (x) . | . . 1 1 . . Largest Inventory Capacity 8 | 8 8 8 8 8 8 Average Capacity 7 | 7 8 8 8 8 5 Most Carried 8 | 3 8 8 7 8 6 Average Carried 6 | 1 6 7 7 7 4 Final Capacity 8 | 8 8 8 8 8 5 Final Carried 8 | 2 8 7 7 7 5 Class Distribution -------------------- 86% | Mutant 13% | Sprinter Dominant Class ---------------- Mutant | -10/Materials Mutant | -10/Mines Mutant | -10/Exiles Mutant | -9/Mines Sprinter | -8/Materials Resources | -11 -10 -10 -10 -9 -8 ----------- Run | Yrd Mat Min Exi Min Mat Matter Collected 667 | 304 90 10 20 10 233 Remotely . | . . . . . . Salvage Created 1228 | 168 69 188 . 264 539 Parts 68 | 9 8 10 . 13 28 Haulers Intercepted 1 | . . . . . 1 Recyclers Shooed . | . . . . . . Parts Field Recycled . | . . . . . . Retrieved Matter . | . . . . . . Parts Self-Destructed . | . . . . . . Prevented . | . . . . . . Kills | -11 -10 -10 -10 -9 -8 ------- Run | Yrd Mat Min Exi Min Mat Combat Hostiles Destroyed 18 | . . 4 . 5 9 Guns 11 | . . 4 . 5 2 Cannons 4 | . . . . . 4 AOE 3 | . . . . . 3 Classes Destroyed 12 | 3 1 1 . 2 5 Worker 1 | 1 . . . . . Builder 1 | . . . . . 1 Tunneler 4 | 3 . . . 1 . Hauler 1 | . . . . . 1 Recycler 2 | 1 . . . . 1 Operator 1 | . . . . . 1 Watcher 6 | . 3 . . . 3 Swarmer 6 | . . . . . 6 Grunt 8 | . . 4 . 3 1 Brawler 1 | . . . . 1 . Duelist 1 | . . . . 1 . Sentry 2 | . . . . . 2 Best Kill Streak 8 | 2 2 3 . 3 8 Combat Bots Only 6 | . . 3 . 3 6 Max Kills in Single Turn 4 | 1 1 1 . 1 4 Gunslinging . | . . . . . . Exploded 3 | . . . . . 3 Melee . | . . . . . . Uniques/NPCs Destroyed . | . . . . . . Combat | -11 -10 -10 -10 -9 -8 -------- Run | Yrd Mat Min Exi Min Mat Hostile Shots Fired 73 | . 2 20 . 16 35 Missed 25 | . 1 6 . 6 12 Damage Taken 649 | . 8 150 . 175 316 Core 231 | . . 46 . 63 122 Absorbed by Shields . | . . . . . . Ignored by Resistances 165 | . 2 46 . 50 67 Core Remaining (%) 78 | 100 . . . 56 . Volleys Fired 70 | 17 3 5 1 15 29 Largest 2 | 2 2 2 2 2 2 Hottest 118 | 40 90 90 90 100 118 Shots Fired 127 | 34 6 10 2 21 54 Gun 100 | 34 6 10 2 19 29 Cannon 25 | . . . . . 25 Launcher . | . . . . . . Special 2 | . . . . 2 . Kinetic 34 | 34 . . . . . Thermal 22 | . . . . 2 20 Explosive . | . . . . . . Electromagnetic 71 | . 6 10 2 19 34 Robot Hit Streak 13 | 8 6 11 . 13 7 Robot Miss Streak 2 | 1 1 1 . 2 2 Penetration Max . | . . . . . . Secondary Targets 2 | . . 2 . . . Max Gunslinging Chain 1 | . . 1 . . . Shots Hit Robots 95 | 27 4 9 . 17 38 Core Hits 60 | 11 3 10 . 14 22 Critical Kills . | . . . . . . Critical Parts Destroyed . | . . . . . . Critical Strikes . | . . . . . . Melee Attacks 1 | . . . . . 1 Impact . | . . . . . . Slashing . | . . . . . . Piercing . | . . . . . . Sneak Attacks . | . . . . . . Combat Hostiles . | . . . . . . Follow-up Attacks . | . . . . . . Damage Inflicted 1908 | 206 118 161 . 337 1086 Guns 1069 | 206 72 161 . 228 402 Cannons 478 | . . . . . 478 Explosions 361 | . 46 . . 109 206 Melee . | . . . . . . Ramming . | . . . . . . Kinetic 206 | 206 . . . . . Thermal 528 | . 46 . . 109 373 Explosive 33 | . . . . . 33 Electromagnetic 1141 | . 72 161 . 228 680 Impact . | . . . . . . Slashing . | . . . . . . Piercing . | . . . . . . Highest Corruption . | . . . . . . Average Corruption . | . . . . . . Corruption Purged . | . . . . . . Corruption Blocked . | . . . . . . Overload Shots . | . . . . . . Overflow Damage 9 | . . . . . 9 Projectiles 9 | . . . . . 9 Explosions . | . . . . . . Melee . | . . . . . . Knockbacks . | . . . . . . Impact . | . . . . . . Kinetic . | . . . . . . Secondary . | . . . . . . Self-Inflicted Damage 39 | . . . . 39 . Shots 1 | . . . . 1 . Rammed . | . . . . . . Targets Rammed . | . . . . . . Kicked . | . . . . . . Crushed . | . . . . . . Highest Temperature 613 | . 36 153 42 222 613 Average Temperature 150 | . 19 69 25 78 190 Received Heat Transfer 303 | . . 108 . 42 153 Effects 28 | . . . . . 28 Shutdowns 7 | . . . . . 7 Energy Bleed 3 | . . . . . 3 Interference 6 | . . . . . 6 Matter Decay 3 | . . . . . 3 Damage (major) 8 | . . . . . 8 Damage (core) 1 | . . . . . 1 Siege Activations . | . . . . . . Robots Corrupted . | . . . . . . Combat Hostiles . | . . . . . . Parts Fried 9 | . . . . 2 7 Impact Corruptions . | . . . . . . Robots Melted . | . . . . . . Combat Hostiles . | . . . . . . Parts Melted 1 | . . . . . 1 Heat Transferred 857 | . . . . 200 657 Parts Sabotaged . | . . . . . . Parts Stolen . | . . . . . . Parts Stripped . | . . . . . . Power Chain Reactions 5 | . 1 . . 2 2 Alert | -11 -10 -10 -10 -9 -8 ------- Run | Yrd Mat Min Exi Min Mat Peak Influence 287 | 25 78 160 . 238 287 Initial 14 | . 13 . . . 14 Average 67 | 13 21 93 . 74 142 Maximum Alert Level 1 | . . . . 1 1 Low Security (%) 93 | 100 100 100 . 98 65 Level 1 6 | . . . . 1 34 Level 2 . | . . . . . . Level 3 . | . . . . . . Level 4 . | . . . . . . Level 5 . | . . . . . . High Security . | . . . . . . Max Security . | . . . . . . Squads Dispatched . | . . . . . . Investigation . | . . . . . . Extermination . | . . . . . . Reinforcement . | . . . . . . Assault . | . . . . . . Garrison . | . . . . . . Intercept . | . . . . . . Searches Triggered . | . . . . . . Construction Impeded . | . . . . . . Haulers Reinforced . | . . . . . . Active Scanning Responses . | . . . . . . Cargo Convoy Interrupts . | . . . . . . Stealth | -11 -10 -10 -10 -9 -8 --------- Run | Yrd Mat Min Exi Min Mat Distress Signals 1 | . . . . . 1 Communications Jammed . | . . . . . . Distress Signals . | . . . . . . Times Spotted 40 | . 6 6 . 11 17 Peak Tracking Total 5 | . 3 4 . 4 5 Tactical Retreats 8 | . . 2 . 5 1 Traps | -11 -10 -10 -10 -9 -8 ------- Run | Yrd Mat Min Exi Min Mat Traps Triggered 1 | . 1 . . . . Indirectly . | . . . . . . Trap Hack Attempts . | . . . . . . Triggered . | . . . . . . Disarmed . | . . . . . . Reprogrammed 6 | . 6 . . . . Reused . | . . . . . . Traps Extracted . | . . . . . . Installed . | . . . . . . Triggered . | . . . . . . Machines | -11 -10 -10 -10 -9 -8 ---------- Run | Yrd Mat Min Exi Min Mat Machines Disabled 4 | . . . . . 4 Max in Single Turn 2 | . . . . . 2 Machines Repaired . | . . . . . . Machines Dismantled . | . . . . . . Machines Sabotaged . | . . . . . . Overloaded Fab Kills . | . . . . . . Hacking | -11 -10 -10 -10 -9 -8 --------- Run | Yrd Mat Min Exi Min Mat Machines Accessed 11 | . 4 . 4 . 3 Terminals 6 | . 4 . . . 2 Fabricators . | . . . . . . Repair Stations . | . . . . . . Recycling Units 1 | . . . . . 1 Scanalyzers . | . . . . . . Garrison Access . | . . . . . . Total Hacks 39 | . 12 . 15 . 12 Successful 31 | . 8 . 15 . 8 Failed 8 | . 4 . . . 4 Catastrophic . | . . . . . . Database Lockouts . | . . . . . . Manual . | . . . . . . Terminals 22 | . 12 . . . 10 Fabricators . | . . . . . . Repair Stations . | . . . . . . Recycling Units 2 | . . . . . 2 Scanalyzers . | . . . . . . Garrison Access . | . . . . . . Terminal Hacks 29 | . 8 . 15 . 6 Record 18 | . . . 15 . 3 Prototype ID Bank 1 | . 1 . . . . Emergency Access Points 2 | . 2 . . . . Terminal Index 1 | . . . . . 1 Unreport Threat 2 | . 1 . . . 1 Locate Traps 1 | . 1 . . . . Reprogram Traps 1 | . 1 . . . . Investigation Status 1 | . . . . . 1 Registered Components 1 | . 1 . . . . Registered Prototypes 1 | . 1 . . . . Fabricator Hacks . | . . . . . . Repair Station Hacks . | . . . . . . Recycling Unit Hacks 2 | . . . . . 2 Report Inventory 1 | . . . . . 1 Retrieve Matter 1 | . . . . . 1 Scanalyzer . | . . . . . . Garrison Access Hacks . | . . . . . . Unauthorized Hacks . | . . . . . . Terminals . | . . . . . . Fabricators . | . . . . . . Repair Stations . | . . . . . . Recycling Units . | . . . . . . Scanalyzers . | . . . . . . Garrison Access . | . . . . . . Data Cores Recovered 1 | . . . . . 1 Used 1 | . . . . . 1 Hacking Detections 7 | . 4 . . . 3 Full Trace Events . | . . . . . . Feedback Events . | . . . . . . Feedback Blocked . | . . . . . . Robot Schematics Acquired . | . . . . . . Robots Built . | . . . . . . Authchips . | . . . . . . Time . | . . . . . . Total Robot Build Rating . | . . . . . . Part Schematics Acquired . | . . . . . . Parts Built . | . . . . . . Authchips . | . . . . . . Time . | . . . . . . Total Part Build Rating . | . . . . . . Parts Repaired . | . . . . . . Time . | . . . . . . Parts Recycled . | . . . . . . Recycled Matter . | . . . . . . Retrieved Matter . | . . . . . . Retrieved Components . | . . . . . . Parts Scanalyzed . | . . . . . . Part Schematics Acquired . | . . . . . . Parts Damaged . | . . . . . . Bothacking | -11 -10 -10 -10 -9 -8 ------------ Run | Yrd Mat Min Exi Min Mat Used RIF Installer . | . . . . . . Robots Hacked 1 | . . . . . 1 Non-combat 1 | . . . . . 1 Combat . | . . . . . . Robot Hacks Applied 1 | . . . . . 1 parse_system 1 | . . . . . 1 Relay Couplers Released . | . . . . . . Fabnet Peak Effective % . | . . . . . . Robots Rewired . | . . . . . . Allies Hacked . | . . . . . . Hacks Repelled . | . . . . . . Allies | -11 -10 -10 -10 -9 -8 -------- Run | Yrd Mat Min Exi Min Mat Total Allies . | . . . . . . Largest Group . | . . . . . . Highest-Rated Group . | . . . . . . Highest-Rated Ally . | . . . . . . Total Orders . | . . . . . . Ally Attacks . | . . . . . . Total Damage . | . . . . . . Kills . | . . . . . . Allies Corrupted . | . . . . . . Allies Melted . | . . . . . . Intel | -11 -10 -10 -10 -9 -8 ------- Run | Yrd Mat Min Exi Min Mat Robot Analysis Total . | . . . . . . Derelict Logs Recovered 2 | . . 1 . 1 . Drone Launches . | . . . . . . Drone Recoveries . | . . . . . . Exploration | -11 -10 -10 -10 -9 -8 ------------- Run | Yrd Mat Min Exi Min Mat Turns Passed 2326 | 264 446 314 414 572 316 Spaces Moved 2243 | 134 335 251 354 617 552 Core 9 | 9 . . . . . Treads 173 | 125 48 . . . . Legs . | . . . . . . Wheels . | . . . . . . Hover 1504 | . 282 251 354 617 . Flight 557 | . 5 . . . 552 Fastest Speed 26 | 50 112 116 116 56 26 Average Speed 84 | 152 122 116 116 71 27 Slowest Speed 160 | 160 160 116 116 116 106 Overloaded Moves . | . . . . . . Propulsion Burnouts . | . . . . . . Robots Hopped . | . . . . . . Cave-ins Triggered . | . . . . . . Exploration Rate (%) 51 | 7 66 65 70 68 35 Regions Visited 5 Branch Regions 3 Pre-discovered Areas 2 | . . 1 1 . . Known Exits Taken . | . . . . . . Unknown Exits Taken 5 | 1 1 1 1 1 . Scrap Searched 1 | . . . . 1 . Spaces Dug 1 | . . . . 1 . Terrain Destroyed 25 | . 6 . . 10 9 Melee . | . . . . . . Projectile 2 | . . . . 2 . AOE 23 | . 6 . . 8 9 Terrain Rammed . | . . . . . . Walls Destroyed . | . . . . . . Machines Disabled . | . . . . . . Actions | -11 -10 -10 -10 -9 -8 --------- Run | Yrd Mat Min Exi Min Mat Total 2538 | 166 364 264 355 725 664 Wait 142 | . . 1 . 92 49 Move 2238 | 133 334 250 353 616 552 Hop . | . . . . . . Pick Up 32 | 9 12 2 . 1 8 Fast Attach 1 | . . . . . 1 Attach 15 | 7 . . . 1 7 Detach 3 | . . . . . 3 Swap 19 | . 9 3 . . 7 Drop 16 | . 6 3 . . 7 Fire 70 | 17 3 5 1 15 29 Melee 1 | . . . . . 1 Ram . | . . . . . . Kick . | . . . . . . Crush . | . . . . . . Escape Stasis . | . . . . . . Rewire 1 | . . . 1 . . Trap . | . . . . . . Miscellaneous . | . . . . . . Route ------- -11/Scrapyard -10/Materials (discovered 2 exits: [*Mat] / [*Min]) -10/Mines (discovered 2 exits: [*Mat] / *Exi) -10/Exiles (discovered 2 exits: [*Min x2]) -9/Mines -8/Materials History --------- Turn | Location | Event 5 | -11/Scrapyard | Discovered new exit (range 15) 265 | -11/Scrapyard | Entered Materials 321 | -10/Materials | Build established: Mutant 653 | -10/Materials | Discovered new exit (range 5) 704 | -10/Materials | Discovered new exit (range 7) 711 | -10/Materials | Entered Mines 793 | -10/Mines | Discovered new exit (range 10) 795 | -10/Mines | Learned location of Zion (-7) 929 | -10/Mines | Found a damaged Exp. Sensor Array with a note attached 933 | -10/Mines | Found Prototype Device 934 | -10/Mines | Identified Exp. Sensor Array 1017 | -10/Mines | Deemed a non-threat by the Exiles lab entrance 1019 | -10/Mines | Discovered new exit (range 5) 1025 | -10/Mines | Entered Exiles 1044 | -10/Exiles | Discovered new exit (range 14) 1065 | -10/Exiles | Met 8R-AWN 1094 | -10/Exiles | Met EX-HEX 1154 | -10/Exiles | Met EX-DEC 1228 | -10/Exiles | Met EX-BIN 1429 | -10/Exiles | Discovered new exit (range 10) 1439 | -10/Exiles | Entered Mines 1489 | -9/Mines | Received a Rocket Launcher from a helpful Derelict 1568 | -9/Mines | Learned 2 Materials zone layouts 1837 | -9/Mines | Assembled infested the area 1996 | -9/Mines | Discovered new exit (range 5) 2011 | -9/Mines | Entered Materials 2011 | -8/Materials | Evolved 4 slots: Power x1, Propulsion x2, Weapon x1 2312 | -8/Materials | Build established: Sprinter 2327 | -8/Materials | Self-destructed Last Messages --------------- 02318_ K-01 Serf collects debris. 02319_ Nuclear Reactor explodes. 02319_ Matter Pump disabled. 02321_ Overheating: Hvy. Particle Gun damaged (-21). 02321_ A-02 Transporter destroyed. 02322_ Overheating: Core damaged (-88). 02322_ K-01 Serf collects debris. 02323_ Power failure, Lgt. Ion Engine shutdown. 02323_ K-01 Serf collects debris. 02325_ Overheating: Energy bleed (-4). 02326_ Overheating: Matter decay (-30). 02326_ K-01 Serf collects debris. 02327_ Overheating: Lgt. Ion Engine damaged (-7). 02327_ Overheating: Exp. Sensor Array damaged (-1). 02327_ Overheating: EM Pulse Cannon damaged (-22). 02327_ Overheating: Com. Battery damaged (-7). Map ----- +----------------------------------------------------+ | ???????????????????????????????????#""" % # | | ???????????????????????????????????#""" # | | ???????????????????????????????????#""" # | | ???????????????????????????????????# # | | ???????????????????????????????????#""" # | | ???????????????????????????????????#""" # ## | | ???????????????????????????????????#""" ! # #? | | ??####?????????###### ????????# # #? | | ?? T #??????????????#####+###############+### #? | | ?? #?????????????????# ! % #? | | ?? #?????????????????# "%% #? | | ?? #???????#######???# =% % #? | | ?? #???????# #???#### ##### #############? | | ?? #???????# " #?????# ??# #????????????? | | ?? #???????# """#?????# #?# #????????????? | | ?? #???????# """#?????# #?# #????????????? | | ?? #???????# """#?????# #?# #????????????? | | ??############ "" #?????# #?# #????????????? | | ??##### """ # """#?????# #?# #????????????? | | ?? # """ # ""#?????# ##?# #????????????? | | ??### # """ # """#?????# ###??# #????????????? | | ?? ## # # " #?????##?????# #????????????? | | ?? ## + # #????????????# #????????????? | | ?? ## # # #######?????## ##???????????? | | ?? ## ##########+### ####### k ####????????? | | ?? ## #?# @ !#????????? | | ?? ## #?# !#???????? | | ??### #?# !#???????? | | ????# #?# ####### !#???????? | | ??### #?# #?????####### !#???????? | | ?? #?# "" %g#???????????? !##???????? | | ??### #?# " #????????????###????????? | | ?????????????" #???????????????????????? | | ????????????? k [ ???????????????????????? | | ????????????? [][ ???????????????????????? | | ?????????????? =]%t! ???????????????????????? | | ??????????????############???????????????????????? | | ?????????????????????????????????????????????????? | | ?????????????????????????????????????????????????? | | ?????????????????????????????????????????????????? | | ?????????????????????????????????????????????????? | | ?????????????????????????????????????????????????? | | ?????????????????????????????????????????????????? | | ?????????????????????????????????????????????????? | | ?????????????????????????????????????????????????? | | ?????????????????????????????????????????????????? | | ?????????????????????????????????????????????????? | | ?????????????????????????????????????????????????? | | ?????????????????????????????????????????????????? | | ?????????????????????????????????????????????????? | +----------------------------------------------------+ Best States ------------- Heat Dissipation 31 Energy Generation 19 Energy Capacity 350 Matter Stores 300 Matter Capacity 300 Sight Range 16 Robot Scan Range 20 Terrain Scan Range 16 Terrain Scan Density 10 Resistance: KI 20 Resistance: TH 20 Resistance: EX 20 Resistance: EM 20 Resistance: I 20 Resistance: S 20 Resistance: P 20 Evasion (%) 64 Recoil Reduction 2 Offensive Hacking 10 Item Schematics ----------------- None Robot Schematics ------------------ None Fabricated ------------ Nothing Alien Tech Used ----------------- None Achievements -------------- Dynamic Key Challenges ------------ None Game ------ Seed AnalysisSwordSheargun Manual? 0 Play Time 00:34:54 Cumulative 6.5 hours Start 2024.03.13 @ 22:46:32 End 2024.03.14 @ 10:00:54 Sessions 3 Manual Loads 0 Difficulty Adventurer Special Mode None Game No. 9 Rogue 0 Adventurer 9 Explorer 0 Win Type - Total 0 Types 0/0/0/0/0/0/0/0/0 Lore% 9 Gallery% 11 Achievement% 11 Wizard Run 0 Options --------- Layout 1 ASCII 0 Keyboard 0 Movement Mouse Keybinds 0 Fullscreen 2 Font 24/Smallcaps Map View 50x35 Zoom Use 0% Tactical HUD 1 Map Filters NONE Filters NONE Steam 1 RUN: de5250e9-78e8-4e4c-8f80-00b97049b8bf